[Event "Late-Titled-Tuesday-Blitz-March-26-2024"]
[Site "Chess.com"]
[Date "2024.03.26"]
[Round "6"]
[White "Koalaskakistis"]
[Black "ContrVersia"]
[Result "1-0"]
[WhiteElo "2500"]
[BlackElo "2908"]
[TimeControl "180+1"]
[EndTime "15:07:08 PDT"]
[Termination "Koalaskakistis won by resignation"]

1. e4 {[%clk 0:03:00.9]} 1... c5 {[%clk 0:02:59.2]} 2. Nf3 {[%clk 0:02:58.3]}
2... a6 {[%clk 0:02:59.4]} 3. c3 {[%clk 0:02:54.1]} 3... e6 {[%clk 0:02:58.9]}
4. d4 {[%clk 0:02:54.2]} 4... d5 {[%clk 0:02:57.4]} 5. e5 {[%clk 0:02:52]} 5...
Bd7 {[%clk 0:02:57]} 6. Bd3 {[%clk 0:02:48.6]} 6... Nc6 {[%clk 0:02:56.6]} 7.
O-O {[%clk 0:02:48.3]} 7... Qb6 {[%clk 0:02:55.5]} 8. Be2 {[%clk 0:02:37.2]}
8... Rc8 {[%clk 0:02:51.2]} 9. dxc5 {[%clk 0:02:30.7]} 9... Bxc5 {[%clk
0:02:50.3]} 10. b4 {[%clk 0:02:30.5]} 10... Be7 {[%clk 0:02:48.6]} 11. Bd3
{[%clk 0:02:27.9]} 11... f6 {[%clk 0:02:11.9]} 12. Bf4 {[%clk 0:02:17]} 12... f5
{[%clk 0:01:53.1]} 13. Nbd2 {[%clk 0:02:06.8]} 13... Qd8 {[%clk 0:01:51.2]} 14.
Nb3 {[%clk 0:02:01.2]} 14... g5 {[%clk 0:01:50.5]} 15. Nxg5 {[%clk 0:02:01.5]}
15... Bxg5 {[%clk 0:01:37.5]} 16. Qh5+ {[%clk 0:02:01.8]} 16... Kf8 {[%clk
0:01:37.8]} 17. Bxg5 {[%clk 0:02:02.3]} 17... Qe8 {[%clk 0:01:31.1]} 18. Qxe8+
{[%clk 0:01:56.4]} 18... Kxe8 {[%clk 0:01:21.5]} 19. Rfe1 {[%clk 0:01:55.6]}
19... Nd8 {[%clk 0:01:14.6]} 20. Nc5 {[%clk 0:01:51.9]} 20... Rc7 {[%clk
0:01:13.8]} 21. c4 {[%clk 0:01:22.3]} 21... Nf7 {[%clk 0:00:57.2]} 22. Be3
{[%clk 0:00:38.8]} 22... dxc4 {[%clk 0:00:56.2]} 23. Bxc4 {[%clk 0:00:39.1]}
23... b6 {[%clk 0:00:52.6]} 24. Nxd7 {[%clk 0:00:39.3]} 24... Rxc4 {[%clk
0:00:52.9]} 25. Nxb6 {[%clk 0:00:37.1]} 25... Rxb4 {[%clk 0:00:52.5]} 26. Rac1
{[%clk 0:00:33.8]} 26... Ne7 {[%clk 0:00:48.7]} 27. Bc5 {[%clk 0:00:29.2]} 27...
Rb2 {[%clk 0:00:48.9]} 28. Red1 {[%clk 0:00:25.8]} 28... Ng6 {[%clk 0:00:30.2]}
29. Bd4 {[%clk 0:00:23]} 29... Rb5 {[%clk 0:00:24.6]} 30. Rc8+ {[%clk
0:00:22.8]} 30... Nd8 {[%clk 0:00:24.3]} 31. a4 {[%clk 0:00:15.5]} 31... Rb3
{[%clk 0:00:24.4]} 32. Bc5 {[%clk 0:00:15.5]} 32... Kf7 {[%clk 0:00:18.7]} 33.
Rd7+ {[%clk 0:00:15.9]} 1-0

[Event "Late-Titled-Tuesday-Blitz-March-26-2024"]
[Site "Chess.com"]
[Date "2024.03.26"]
[Round "6"]
[White "Christian_Jordan"]
[Black "Defenstrator"]
[Result "0-1"]
[WhiteElo "2023"]
[BlackElo "2471"]
[TimeControl "180+1"]
[EndTime "15:07:09 PDT"]
[Termination "Defenstrator won on time"]

1. e4 {[%clk 0:02:52.4]} 1... f6 {[%clk 0:02:59.3]} 2. d4 {[%clk 0:02:48.6]}
2... Kf7 {[%clk 0:02:59.5]} 3. f4 {[%clk 0:02:44.3]} 3... Ke6 {[%clk 0:02:56.1]}
4. Nf3 {[%clk 0:02:43]} 4... d6 {[%clk 0:02:51.7]} 5. Bd3 {[%clk 0:02:39.5]}
5... Kd7 {[%clk 0:02:50.6]} 6. O-O {[%clk 0:02:38.5]} 6... Qe8 {[%clk
0:02:51.2]} 7. e5 {[%clk 0:02:34.3]} 7... Kd8 {[%clk 0:02:51]} 8. Nc3 {[%clk
0:02:25.9]} 8... c6 {[%clk 0:02:44.5]} 9. exd6 {[%clk 0:02:21.5]} 9... exd6
{[%clk 0:02:44.5]} 10. Re1 {[%clk 0:02:19.7]} 10... Qf7 {[%clk 0:02:44.1]} 11.
Ne4 {[%clk 0:02:08.3]} 11... d5 {[%clk 0:02:43.3]} 12. Ng3 {[%clk 0:02:06.7]}
12... Bd6 {[%clk 0:02:33.9]} 13. Nf5 {[%clk 0:01:56.4]} 13... Bc7 {[%clk
0:02:32.8]} 14. b3 {[%clk 0:01:38.4]} 14... g6 {[%clk 0:02:33]} 15. Ng3 {[%clk
0:01:36.1]} 15... Ne7 {[%clk 0:02:20.9]} 16. c4 {[%clk 0:01:34.6]} 16... Bg4
{[%clk 0:02:19.7]} 17. h3 {[%clk 0:01:31.4]} 17... Bxf3 {[%clk 0:02:19.5]} 18.
Qxf3 {[%clk 0:01:30.8]} 18... Nd7 {[%clk 0:02:20]} 19. Ba3 {[%clk 0:01:28.7]}
19... Re8 {[%clk 0:02:19.8]} 20. Re2 {[%clk 0:00:47.7]} 20... Nc8 {[%clk
0:02:16.1]} 21. Rxe8+ {[%clk 0:00:34.7]} 21... Qxe8 {[%clk 0:02:16.6]} 22. Kf2
{[%clk 0:00:33.4]} 22... Qf7 {[%clk 0:02:05.6]} 23. Re1 {[%clk 0:00:31.6]} 23...
Bd6 {[%clk 0:02:05.8]} 24. Bxd6 {[%clk 0:00:25.8]} 24... Nxd6 {[%clk 0:02:06.3]}
25. c5 {[%clk 0:00:22.7]} 25... Nc8 {[%clk 0:02:00.9]} 26. Qe3 {[%clk
0:00:19.8]} 26... f5 {[%clk 0:01:50.2]} 27. Qe6 {[%clk 0:00:18.6]} 27... Qxe6
{[%clk 0:01:41.5]} 28. Rxe6 {[%clk 0:00:18.1]} 28... Nf8 {[%clk 0:01:41.9]} 29.
Re3 {[%clk 0:00:15.8]} 29... Ne7 {[%clk 0:01:38.7]} 30. h4 {[%clk 0:00:14.9]}
30... Kd7 {[%clk 0:01:37.6]} 31. h5 {[%clk 0:00:15]} 31... Re8 {[%clk
0:01:38.1]} 32. hxg6 {[%clk 0:00:14.7]} 32... hxg6 {[%clk 0:01:38.5]} 33. Ne2
{[%clk 0:00:11.9]} 33... Ne6 {[%clk 0:01:38.1]} 34. Rg3 {[%clk 0:00:10.8]} 34...
Rh8 {[%clk 0:01:28.1]} 35. Rh3 {[%clk 0:00:10.4]} 35... Rxh3 {[%clk 0:01:24.2]}
36. gxh3 {[%clk 0:00:10.2]} 36... Ng8 {[%clk 0:01:24.7]} 37. Kg3 {[%clk
0:00:09.9]} 37... Nf6 {[%clk 0:01:25.2]} 38. Kh4 {[%clk 0:00:09.1]} 38... Ne4
{[%clk 0:01:19.4]} 39. Bxe4 {[%clk 0:00:06.8]} 39... dxe4 {[%clk 0:01:13.2]} 40.
Kg3 {[%clk 0:00:06.9]} 40... Ng7 {[%clk 0:01:10.9]} 41. Kf2 {[%clk 0:00:05.5]}
41... Ke6 {[%clk 0:01:10.8]} 42. Ke3 {[%clk 0:00:05.5]} 42... Nh5 {[%clk
0:01:08.4]} 43. Nc3 {[%clk 0:00:04.4]} 43... Nf6 {[%clk 0:01:07.9]} 44. b4
{[%clk 0:00:02.7]} 44... Nd5+ {[%clk 0:00:58.1]} 45. Nxd5 {[%clk 0:00:02]} 45...
Kxd5 {[%clk 0:00:58.7]} 0-1

[Event "Late-Titled-Tuesday-Blitz-March-26-2024"]
[Site "Chess.com"]
[Date "2024.03.26"]
[Round "6"]
[White "Nf3c5"]
[Black "Romkachess"]
[Result "1-0"]
[WhiteElo "2566"]
[BlackElo "2693"]
[TimeControl "180+1"]
[EndTime "15:07:11 PDT"]
[Termination "Nf3c5 won on time"]

1. e4 {[%clk 0:02:58.8]} 1... c5 {[%clk 0:02:58.8]} 2. Nf3 {[%clk 0:02:57.5]}
2... d6 {[%clk 0:02:55.7]} 3. Nc3 {[%clk 0:02:56.8]} 3... Nf6 {[%clk 0:02:53.7]}
4. e5 {[%clk 0:02:57.1]} 4... dxe5 {[%clk 0:02:53.8]} 5. Nxe5 {[%clk 0:02:57.6]}
5... Nbd7 {[%clk 0:02:54.4]} 6. d4 {[%clk 0:02:56.3]} 6... e6 {[%clk 0:02:52.5]}
7. Nc4 {[%clk 0:02:38.5]} 7... Be7 {[%clk 0:02:46.1]} 8. Be3 {[%clk 0:02:32.2]}
8... O-O {[%clk 0:02:44.6]} 9. Qf3 {[%clk 0:02:24.7]} 9... Rb8 {[%clk 0:02:12]}
10. a4 {[%clk 0:02:02.4]} 10... b6 {[%clk 0:02:05.7]} 11. Bd3 {[%clk 0:02:00.2]}
11... Bb7 {[%clk 0:02:04.5]} 12. Qh3 {[%clk 0:02:00.4]} 12... g6 {[%clk
0:01:21.1]} 13. Rd1 {[%clk 0:01:43.8]} 13... Nd5 {[%clk 0:01:20.6]} 14. Bh6
{[%clk 0:01:34.8]} 14... Bg5 {[%clk 0:01:11.5]} 15. Nxd5 {[%clk 0:01:15.4]}
15... Bxh6 {[%clk 0:01:06.9]} 16. Qxh6 {[%clk 0:00:58.2]} 16... exd5 {[%clk
0:01:07]} 17. Nd2 {[%clk 0:00:54]} 17... Re8+ {[%clk 0:01:04.6]} 18. Kf1 {[%clk
0:00:52.6]} 18... c4 {[%clk 0:00:22]} 19. Be2 {[%clk 0:00:49.2]} 19... Qe7
{[%clk 0:00:22.5]} 20. Re1 {[%clk 0:00:42.8]} 20... Qb4 {[%clk 0:00:22]} 21. h4
{[%clk 0:00:24]} 21... Qxb2 {[%clk 0:00:16.7]} 22. Nf3 {[%clk 0:00:22.2]} 22...
Qxc2 {[%clk 0:00:12.8]} 23. h5 {[%clk 0:00:20.4]} 23... Nf8 {[%clk 0:00:12.8]}
24. hxg6 {[%clk 0:00:17.5]} 24... fxg6 {[%clk 0:00:12.9]} 25. Ne5 {[%clk
0:00:14.1]} 25... Qf5 {[%clk 0:00:08.6]} 26. Rh4 {[%clk 0:00:12.5]} 26... Qf6
{[%clk 0:00:07.4]} 27. Rf4 {[%clk 0:00:12.2]} 27... Qg7 {[%clk 0:00:03.7]} 28.
Qh2 {[%clk 0:00:12.8]} 28... Re7 {[%clk 0:00:02.2]} 29. Ng4 {[%clk 0:00:08.6]}
1-0

[Event "Late-Titled-Tuesday-Blitz-March-26-2024"]
[Site "Chess.com"]
[Date "2024.03.26"]
[Round "6"]
[White "DeArron_Fox"]
[Black "Nechitaylo_Nikita"]
[Result "1-0"]
[WhiteElo "2510"]
[BlackElo "2354"]
[TimeControl "180+1"]
[EndTime "15:07:13 PDT"]
[Termination "DeArron_Fox won on time"]

1. d4 {[%clk 0:02:58.6]} 1... Nf6 {[%clk 0:03:00]} 2. c4 {[%clk 0:02:59.2]} 2...
e6 {[%clk 0:03:00.7]} 3. Nf3 {[%clk 0:02:59.7]} 3... c5 {[%clk 0:03:00.5]} 4. d5
{[%clk 0:02:59.6]} 4... d6 {[%clk 0:03:01.2]} 5. Nc3 {[%clk 0:02:59.9]} 5...
exd5 {[%clk 0:03:01.7]} 6. cxd5 {[%clk 0:03:00.8]} 6... g6 {[%clk 0:03:02.4]} 7.
Nd2 {[%clk 0:03:01.4]} 7... Bg7 {[%clk 0:03:02.2]} 8. e4 {[%clk 0:03:02]} 8...
O-O {[%clk 0:03:02.7]} 9. Be2 {[%clk 0:03:02.6]} 9... Na6 {[%clk 0:03:02.5]} 10.
O-O {[%clk 0:03:03.1]} 10... Nc7 {[%clk 0:03:02.8]} 11. Re1 {[%clk 0:03:03.6]}
11... Re8 {[%clk 0:03:03.4]} 12. a4 {[%clk 0:03:02.1]} 12... b6 {[%clk
0:03:00.7]} 13. Qc2 {[%clk 0:02:46.7]} 13... Rb8 {[%clk 0:03:00.8]} 14. Nc4
{[%clk 0:02:43.6]} 14... Ba6 {[%clk 0:02:59]} 15. Bg5 {[%clk 0:02:34.9]} 15...
Bxc4 {[%clk 0:02:50.9]} 16. Bxc4 {[%clk 0:02:35.8]} 16... a6 {[%clk 0:02:48.6]}
17. Bf1 {[%clk 0:02:17]} 17... Qd7 {[%clk 0:02:29.8]} 18. e5 {[%clk 0:01:35.8]}
18... dxe5 {[%clk 0:01:23.6]} 19. Bxf6 {[%clk 0:01:34.9]} 19... Bxf6 {[%clk
0:01:24.5]} 20. Ne4 {[%clk 0:01:07.1]} 20... Bg7 {[%clk 0:01:15.3]} 21. Rad1
{[%clk 0:01:06.6]} 21... f5 {[%clk 0:01:09.9]} 22. Ng5 {[%clk 0:00:59]} 22...
Qd6 {[%clk 0:00:47.1]} 23. Ne6 {[%clk 0:00:40]} 23... Rbc8 {[%clk 0:00:04.1]}
24. a5 {[%clk 0:00:20.3]} 24... b5 {[%clk 0:00:01]} 25. Ng5 {[%clk 0:00:04.1]}
25... Nxd5 {[%clk 0:00:01.2]} 26. g3 {[%clk 0:00:02.2]} 1-0

[Event "Late-Titled-Tuesday-Blitz-March-26-2024"]
[Site "Chess.com"]
[Date "2024.03.26"]
[Round "6"]
[White "promen1999"]
[Black "Andreikka"]
[Result "1-0"]
[WhiteElo "2849"]
[BlackElo "2981"]
[TimeControl "180+1"]
[EndTime "15:07:15 PDT"]
[Termination "promen1999 won on time"]

1. d4 {[%clk 0:02:59.7]} 1... Nf6 {[%clk 0:02:59.4]} 2. c4 {[%clk 0:02:59.9]}
2... e6 {[%clk 0:03:00]} 3. Nc3 {[%clk 0:02:59.9]} 3... d5 {[%clk 0:02:59.7]} 4.
cxd5 {[%clk 0:02:54.1]} 4... exd5 {[%clk 0:03:00.6]} 5. Bf4 {[%clk 0:02:52.4]}
5... c5 {[%clk 0:02:57.8]} 6. e3 {[%clk 0:02:50.8]} 6... Nc6 {[%clk 0:02:50.4]}
7. Bb5 {[%clk 0:02:11.2]} 7... cxd4 {[%clk 0:02:41]} 8. exd4 {[%clk 0:02:10.6]}
8... Bd6 {[%clk 0:02:38.8]} 9. Nge2 {[%clk 0:02:06.5]} 9... O-O {[%clk
0:02:36.4]} 10. O-O {[%clk 0:02:06.6]} 10... Ne7 {[%clk 0:02:24.5]} 11. Re1
{[%clk 0:02:04.4]} 11... Ng6 {[%clk 0:02:20.1]} 12. Bg3 {[%clk 0:01:56.8]} 12...
Ne4 {[%clk 0:02:07.9]} 13. Qb3 {[%clk 0:01:23.4]} 13... Nxg3 {[%clk 0:01:29.5]}
14. hxg3 {[%clk 0:01:20.9]} 14... Be6 {[%clk 0:01:29.4]} 15. Bd3 {[%clk
0:01:21.2]} 15... Qd7 {[%clk 0:01:17.3]} 16. Rac1 {[%clk 0:01:20]} 16... Ne7
{[%clk 0:01:13.4]} 17. Nf4 {[%clk 0:01:19.1]} 17... Bxf4 {[%clk 0:01:08]} 18.
gxf4 {[%clk 0:01:20]} 18... Rac8 {[%clk 0:01:03.3]} 19. g3 {[%clk 0:01:14]}
19... h5 {[%clk 0:00:37.9]} 20. Re5 {[%clk 0:01:03.6]} 20... g6 {[%clk 0:00:38]}
21. Rce1 {[%clk 0:00:59.2]} 21... Kg7 {[%clk 0:00:33.8]} 22. Qa3 {[%clk
0:00:56.4]} 22... Nc6 {[%clk 0:00:31]} 23. Bb5 {[%clk 0:00:56.2]} 23... h4
{[%clk 0:00:18.8]} 24. f5 {[%clk 0:00:39.4]} 24... Bxf5 {[%clk 0:00:15.7]} 25.
Nxd5 {[%clk 0:00:38.2]} 25... hxg3 {[%clk 0:00:14.2]} 26. Qxg3 {[%clk
0:00:37.4]} 26... Rh8 {[%clk 0:00:13.1]} 27. Ne7 {[%clk 0:00:31.1]} 27... Rh5
{[%clk 0:00:08.4]} 28. d5 {[%clk 0:00:20.5]} 28... Rch8 {[%clk 0:00:04.6]} 29.
Nxf5+ {[%clk 0:00:18.6]} 29... Rxf5 {[%clk 0:00:02.7]} 30. dxc6 {[%clk
0:00:18.8]} 30... Qd2 {[%clk 0:00:01.2]} 31. Rxf5 {[%clk 0:00:16.9]} 31... Qxe1+
{[%clk 0:00:01.4]} 32. Bf1 {[%clk 0:00:16.1]} 32... Qb1 {[%clk 0:00:01.1]} 33.
Qe5+ {[%clk 0:00:15.8]} 1-0

[Event "Late-Titled-Tuesday-Blitz-March-26-2024"]
[Site "Chess.com"]
[Date "2024.03.26"]
[Round "6"]
[White "HanSchut"]
[Black "onnoelgersma"]
[Result "1-0"]
[WhiteElo "2284"]
[BlackElo "2501"]
[TimeControl "180+1"]
[EndTime "15:07:17 PDT"]
[Termination "HanSchut won on time"]

1. e4 {[%clk 0:03:00.9]} 1... d6 {[%clk 0:02:47.6]} 2. d4 {[%clk 0:03:00.4]}
2... Nf6 {[%clk 0:02:48.2]} 3. Nc3 {[%clk 0:03:00.6]} 3... Nc6 {[%clk
0:02:48.8]} 4. f4 {[%clk 0:02:54.4]} 4... Bg4 {[%clk 0:02:37.1]} 5. Nf3 {[%clk
0:02:45.1]} 5... e5 {[%clk 0:02:26.8]} 6. fxe5 {[%clk 0:02:41.8]} 6... dxe5
{[%clk 0:02:25.1]} 7. d5 {[%clk 0:02:42.2]} 7... Nd4 {[%clk 0:02:25]} 8. Nb5
{[%clk 0:02:34.4]} 8... Bxf3 {[%clk 0:02:09.4]} 9. gxf3 {[%clk 0:02:32.5]} 9...
Nxe4 {[%clk 0:01:25.4]} 10. fxe4 {[%clk 0:01:14.6]} 10... Qh4+ {[%clk
0:01:23.1]} 11. Kd2 {[%clk 0:01:15.1]} 11... Bb4+ {[%clk 0:01:10.4]} 12. c3
{[%clk 0:01:02.5]} 12... Qf2+ {[%clk 0:00:30.3]} 13. Be2 {[%clk 0:01:02.3]}
13... Nxb5 {[%clk 0:00:19.5]} 14. cxb4 {[%clk 0:01:02.5]} 14... Nd4 {[%clk
0:00:16.3]} 15. Qf1 {[%clk 0:00:48.4]} 15... Qh4 {[%clk 0:00:13.8]} 16. Bd3
{[%clk 0:00:40.2]} 16... O-O-O {[%clk 0:00:11.4]} 17. Kc3 {[%clk 0:00:31.6]}
17... f5 {[%clk 0:00:11.4]} 18. exf5 {[%clk 0:00:26.6]} 18... Rxd5 {[%clk
0:00:11.6]} 19. Bc4 {[%clk 0:00:17.9]} 19... Rd6 {[%clk 0:00:08.7]} 20. Be3
{[%clk 0:00:15.5]} 20... Rc6 {[%clk 0:00:08.8]} 21. b5 {[%clk 0:00:15.3]} 21...
Nxb5+ {[%clk 0:00:08.8]} 22. Kb3 {[%clk 0:00:13.7]} 22... Nd6 {[%clk 0:00:08.5]}
23. Be6+ {[%clk 0:00:09.4]} 23... Kb8 {[%clk 0:00:09.1]} 24. Rc1 {[%clk
0:00:09.6]} 24... Ra6 {[%clk 0:00:03.4]} 25. a3 {[%clk 0:00:09.5]} 25... Qa4+
{[%clk 0:00:01.2]} 26. Ka2 {[%clk 0:00:10]} 26... Nb5 {[%clk 0:00:02.1]} 27. Qd3
{[%clk 0:00:08.3]} 27... Re8 {[%clk 0:00:01.5]} 28. Rhd1 {[%clk 0:00:07.4]} 1-0

[Event "Late-Titled-Tuesday-Blitz-March-26-2024"]
[Site "Chess.com"]
[Date "2024.03.26"]
[Round "6"]
[White "YegoryoCh"]
[Black "GodzillaChessYoutube"]
[Result "1-0"]
[WhiteElo "2567"]
[BlackElo "2698"]
[TimeControl "180+1"]
[EndTime "15:07:18 PDT"]
[Termination "YegoryoCh won on time"]

1. e4 {[%clk 0:03:00.9]} 1... c5 {[%clk 0:02:25.7]} 2. Nf3 {[%clk 0:02:57.9]}
2... e6 {[%clk 0:02:25.4]} 3. d4 {[%clk 0:02:58]} 3... cxd4 {[%clk 0:02:26.3]}
4. Nxd4 {[%clk 0:02:58.8]} 4... a6 {[%clk 0:02:26.5]} 5. c4 {[%clk 0:02:59]}
5... Nf6 {[%clk 0:02:25.3]} 6. Nc3 {[%clk 0:02:55.3]} 6... Bb4 {[%clk
0:02:25.5]} 7. Qd3 {[%clk 0:02:52.6]} 7... Nc6 {[%clk 0:02:23.1]} 8. Be2 {[%clk
0:02:50.8]} 8... Qc7 {[%clk 0:02:20.8]} 9. O-O {[%clk 0:02:47.9]} 9... O-O
{[%clk 0:02:13.9]} 10. Nxc6 {[%clk 0:02:27.6]} 10... dxc6 {[%clk 0:02:13.4]} 11.
Bg5 {[%clk 0:02:27.1]} 11... Nd7 {[%clk 0:01:59.3]} 12. Qe3 {[%clk 0:02:19.8]}
12... Bc5 {[%clk 0:01:54.1]} 13. Qh3 {[%clk 0:02:20]} 13... e5 {[%clk 0:01:51]}
14. Rad1 {[%clk 0:02:19]} 14... Re8 {[%clk 0:01:46.9]} 15. Qg3 {[%clk 0:02:18]}
15... Nf8 {[%clk 0:01:44.7]} 16. h4 {[%clk 0:02:14.9]} 16... Kh8 {[%clk
0:01:38.1]} 17. h5 {[%clk 0:02:15.1]} 17... h6 {[%clk 0:01:37.8]} 18. Bc1 {[%clk
0:02:13.1]} 18... Ne6 {[%clk 0:01:34.4]} 19. Bg4 {[%clk 0:02:06.6]} 19... Nd4
{[%clk 0:01:34]} 20. Be3 {[%clk 0:02:04]} 20... Qe7 {[%clk 0:01:24.7]} 21. a3
{[%clk 0:01:55.4]} 21... a5 {[%clk 0:01:24.1]} 22. Kh1 {[%clk 0:01:27.1]} 22...
Bxg4 {[%clk 0:01:17.6]} 23. Qxg4 {[%clk 0:01:28]} 23... Qe6 {[%clk 0:01:18]} 24.
Qg3 {[%clk 0:01:25]} 24... Nb3 {[%clk 0:01:12]} 25. Na4 {[%clk 0:01:17]} 25...
Bd4 {[%clk 0:00:59.3]} 26. Rd3 {[%clk 0:01:07]} 26... b5 {[%clk 0:00:50.3]} 27.
cxb5 {[%clk 0:00:55.5]} 27... cxb5 {[%clk 0:00:49.1]} 28. Bxd4 {[%clk
0:00:55.1]} 28... Nxd4 {[%clk 0:00:25]} 29. Nc3 {[%clk 0:00:54.4]} 29... b4
{[%clk 0:00:24.1]} 30. Nd5 {[%clk 0:00:51.4]} 30... Ra7 {[%clk 0:00:14.6]} 31.
axb4 {[%clk 0:00:51.2]} 31... axb4 {[%clk 0:00:15.5]} 32. Nxb4 {[%clk
0:00:51.8]} 32... Rb8 {[%clk 0:00:15.1]} 33. Ra3 {[%clk 0:00:45.7]} 33... Rab7
{[%clk 0:00:13.8]} 34. Na6 {[%clk 0:00:45.5]} 34... Rc8 {[%clk 0:00:11.3]} 35.
b4 {[%clk 0:00:45.2]} 35... Rb6 {[%clk 0:00:08.2]} 36. Nc5 {[%clk 0:00:45]}
36... Qe7 {[%clk 0:00:06.5]} 37. Nd3 {[%clk 0:00:42.1]} 37... Nc6 {[%clk
0:00:05]} 38. Rc3 {[%clk 0:00:40.8]} 38... Rd8 {[%clk 0:00:05.3]} 39. Rfc1
{[%clk 0:00:32.2]} 1-0

[Event "Late-Titled-Tuesday-Blitz-March-26-2024"]
[Site "Chess.com"]
[Date "2024.03.26"]
[Round "6"]
[White "Supelyel"]
[Black "prime-morty"]
[Result "0-1"]
[WhiteElo "2401"]
[BlackElo "2559"]
[TimeControl "180+1"]
[EndTime "15:07:19 PDT"]
[Termination "prime-morty won by resignation"]

1. c4 {[%clk 0:03:00.9]} 1... d6 {[%clk 0:02:56.8]} 2. Nc3 {[%clk 0:02:59.3]}
2... g6 {[%clk 0:02:57.1]} 3. g3 {[%clk 0:02:59.7]} 3... Bg7 {[%clk 0:02:57.7]}
4. Bg2 {[%clk 0:02:59.9]} 4... e5 {[%clk 0:02:57.8]} 5. d3 {[%clk 0:03:00.1]}
5... Ne7 {[%clk 0:02:58.4]} 6. Nf3 {[%clk 0:03:00.5]} 6... c6 {[%clk 0:02:56.3]}
7. O-O {[%clk 0:03:00.4]} 7... O-O {[%clk 0:02:56.6]} 8. Bg5 {[%clk 0:03:00.5]}
8... h6 {[%clk 0:02:56.5]} 9. Bxe7 {[%clk 0:03:00.7]} 9... Qxe7 {[%clk
0:02:57.4]} 10. Qc2 {[%clk 0:03:00.9]} 10... a5 {[%clk 0:02:57.3]} 11. Rab1
{[%clk 0:03:01.3]} 11... Na6 {[%clk 0:02:55.2]} 12. a3 {[%clk 0:03:01.6]} 12...
Nc5 {[%clk 0:02:55.5]} 13. b4 {[%clk 0:03:01.7]} 13... axb4 {[%clk 0:02:56.4]}
14. axb4 {[%clk 0:03:02.5]} 14... Ne6 {[%clk 0:02:56.9]} 15. b5 {[%clk
0:03:02.9]} 15... Bd7 {[%clk 0:02:51]} 16. bxc6 {[%clk 0:03:02.5]} 16... bxc6
{[%clk 0:02:51]} 17. Rb6 {[%clk 0:02:58.2]} 17... Rfb8 {[%clk 0:02:50.3]} 18.
Rfb1 {[%clk 0:02:55.1]} 18... Qd8 {[%clk 0:02:50]} 19. Rxb8 {[%clk 0:02:42]}
19... Rxb8 {[%clk 0:02:46.8]} 20. Ne4 {[%clk 0:02:41.9]} 20... Rxb1+ {[%clk
0:02:42.5]} 21. Qxb1 {[%clk 0:02:41.4]} 21... d5 {[%clk 0:02:43]} 22. Ned2
{[%clk 0:02:18.8]} 22... Nc5 {[%clk 0:02:31]} 23. h4 {[%clk 0:02:08.9]} 23...
Qe7 {[%clk 0:02:25.2]} 24. Qb8+ {[%clk 0:02:01.3]} 24... Kh7 {[%clk 0:02:24.9]}
25. Nh2 {[%clk 0:01:11.8]} 25... e4 {[%clk 0:02:21.1]} 26. cxd5 {[%clk
0:00:56.3]} 26... e3 {[%clk 0:02:15.9]} 27. Nc4 {[%clk 0:00:34.1]} 27... exf2+
{[%clk 0:02:12.4]} 28. Kxf2 {[%clk 0:00:35]} 28... Bd4+ {[%clk 0:02:05.1]} 29.
Kf1 {[%clk 0:00:34.8]} 29... Qf6+ {[%clk 0:02:01.1]} 30. Qf4 {[%clk 0:00:35]}
30... cxd5 {[%clk 0:01:45.5]} 31. Qxf6 {[%clk 0:00:33.7]} 31... Bxf6 {[%clk
0:01:45.3]} 32. Bxd5 {[%clk 0:00:32.6]} 32... Kg7 {[%clk 0:01:44.4]} 33. Nf3
{[%clk 0:00:32.9]} 33... g5 {[%clk 0:01:41.9]} 34. hxg5 {[%clk 0:00:32.8]} 34...
hxg5 {[%clk 0:01:42.8]} 35. Kf2 {[%clk 0:00:33.3]} 35... Na4 {[%clk 0:01:32.1]}
36. e3 {[%clk 0:00:32]} 36... Nc3 {[%clk 0:01:31.6]} 37. Ba8 {[%clk 0:00:30.9]}
37... Bb5 {[%clk 0:01:29.7]} 38. Nce5 {[%clk 0:00:30]} 38... Be7 {[%clk
0:01:21.4]} 39. d4 {[%clk 0:00:29.1]} 39... f6 {[%clk 0:01:19.5]} 40. Nc6 {[%clk
0:00:25.1]} 40... Bd6 {[%clk 0:01:15.1]} 41. Na5 {[%clk 0:00:22.7]} 41... Nd1+
{[%clk 0:01:15.1]} 42. Ke1 {[%clk 0:00:19.8]} 42... Nxe3 {[%clk 0:01:15.4]} 43.
Kf2 {[%clk 0:00:20.1]} 43... Nf5 {[%clk 0:01:11.5]} 44. g4 {[%clk 0:00:18.6]}
44... Nh6 {[%clk 0:01:11.9]} 45. Nc6 {[%clk 0:00:16.4]} 45... Nxg4+ {[%clk
0:01:11.9]} 46. Kg2 {[%clk 0:00:16.1]} 46... Ne3+ {[%clk 0:01:09.5]} 47. Kf2
{[%clk 0:00:16.2]} 47... Nf5 {[%clk 0:01:07.7]} 48. Nd8 {[%clk 0:00:14]} 48...
g4 {[%clk 0:01:04.8]} 49. Nd2 {[%clk 0:00:13.1]} 49... g3+ {[%clk 0:01:03.1]}
50. Kg2 {[%clk 0:00:13.4]} 50... Nxd4 {[%clk 0:00:59.3]} 51. Ne4 {[%clk
0:00:13.9]} 51... Bc7 {[%clk 0:00:51.8]} 52. Nb7 {[%clk 0:00:09]} 52... Bc6
{[%clk 0:00:50.6]} 53. Na5 {[%clk 0:00:08.3]} 53... Bxa8 {[%clk 0:00:50.4]} 0-1